Workbook

Sheet Лист1
A1: Школа | C1: МБОУ "Читинская ООШ" | G1: Утвердил: | H1: должность | I1: Директор
A2: Форма ежедневного меню приготавливаемых блюд | H2: фамилия | I2: Ф.Ф.Гайнутдинова
A3: Возрастная категория | F3: 7-11 лет | H3: дата | I3: 1 | J3: Декабрь | K3: 2024
I4: день | J4: месяц | K4: год
A5: Неделя | B5: День недели | C5: Прием пищи | D5: Раздел меню | E5: № рецептуры | F5: Блюда | G5: Вес блюда, г | H5: Цена | I5: Калорийность | J5: Белки | K5: Жиры | L5: Углеводы
A6: 1 | B6: 1 | C6: Завтрак | D6: гор.блюдо | E6: ТТК от 19.07.2023 | F6: Тефтели из говядины в соусе томатном | G6: 90 | I6: 223 | J6: 12.790 | K6: 13.930 | L6: 11.730
D7: гор.блюдо | E7: № 304/2015 Дели | F7: Каша рисовая вязкая | G7: 150 | I7: 142 | J7: 2.303 | K7: 4.129 | L7: 23.944
D8: гор.напиток | E8: ТТК от 2021г | F8: Чай с сахаром | G8: 208 | I8: 32 | J8: 0.021 | K8: 0.005 | L8: 7.989
D9: хлеб | F9: Хлеб ржано-пшеничный/ Хлеб пшеничный | G9: 40 | I9: 91 | J9: 2.520 | K9: 0.360 | L9: 18.840
D10: фрукты | E10: № 338 | F10: Плоды и ягоды свежие (яблоки) | G10: 120 | I10: 56 | J10: 0.480 | K10: 0.480 | L10: 11.760
D13: итого | G13: =SUM(G6:G12) -> 608 | H13: 66.76 | I13: 544 | J13: 18.114 | K13: =SUM(K6:K12) -> 18.904 | L13: 74.263
A14: =A6 -> 1 | B14: =B6 -> 1 | C14: Обед | D14: закуска
D15: 1 блюдо
D16: 2 блюдо
D17: гарнир
D18: напиток
D19: хлеб бел.
D20: хлеб черн.
D23: итого | G23: =SUM(G14:G22) -> 0 | H23: =SUM(H14:H22) -> 0 | I23: 0 | J23: 0 | K23: 0 | L23: 0
A24: =A6 -> 1 | B24: =B6 -> 1 | C24: Итого за день: | G24: =G13+G23 -> 608 | H24: =H13+H23 -> 66.76 | I24: 544 | J24: 18.114 | K24: 18.904 | L24: 74.263
A25: 1 | B25: 2 | C25: Завтрак | D25: гор.блюдо | E25: ТТК № 2739 от 07.12.2023 | F25: Жаркое из филе куриных грудок | G25: 200 | I25: 341 | J25: 12.89 | K25: 15.91 | L25: 35.79
D26: гор.напиток | E26: ТТК от 2021г | F26: Чай с сахаром | G26: 208 | I26: 32 | J26: 0.021 | K26: 0.005 | L26: 7.989
D27: хлеб | F27: Хлеб ржано-пшеничный/ Хлеб пшеничный | G27: 40 | I27: 91 | J27: 2.52 | K27: 0.36 | L27: 18.84
D28: фрукты
E29: № 45/2015 Дели | F29: Салат из белокачанной капусты | G29: 60 | I29: 54 | J29: 0.931 | K29: 3.051 | L29: 5.645
D32: итого | G32: =SUM(G25:G31) -> 508 | H32: 66.76 | I32: =SUM(I25:I31) -> 518 | J32: =SUM(J25:J31) -> 16.362 | K32: =SUM(K25:K31) -> 19.326 | L32: =SUM(L25:L31) -> 68.264
A33: =A25 -> 1 | B33: =B25 -> 2 | C33: Обед | D33: закуска
D34: 1 блюдо
D35: 2 блюдо
D36: гарнир
D37: напиток
D38: хлеб бел.
D39: хлеб черн.
D42: итого | G42: =SUM(G33:G41) -> 0 | H42: =SUM(H33:H41) -> 0 | I42: 0 | J42: 0 | K42: 0 | L42: 0
A43: =A25 -> 1 | B43: =B25 -> 2 | C43: Итого за день: | G43: =G32+G42 -> 508 | H43: =H32+H42 -> 66.76 | I43: 518 | J43: 16.362 | K43: 19.326 | L43: 68.264
A44: 1 | B44: 3 | C44: Завтрак | D44: гор.блюдо | E44: ТТК № 2213 от 02.12.2022 | F44: Чикен | G44: 90 | I44: 176 | J44: 11.103 | K44: 10.108 | L44: 11.093
D45: гор.блюдо | E45: № 202/2015 Дели | F45: Макаронные изделия отварные | G45: 150 | I45: 200 | J45: 5.044 | K45: 4.068 | L45: 35.906
D46: гор.напиток | E46: ТТК 2021г | F46: Компот из свежих плодов (яблоки) | G46: 200 | I46: 49 | J46: 0.08 | K46: 0.08 | L46: 11.94
D47: хлеб | F47: Хлеб ржано-пшеничный/ Хлеб пшеничный | G47: 40 | I47: 91 | J47: 2.52 | K47: 0.36 | L47: 18.84
D48: фрукты
E49: № 52/2015 Дели | F49: Салат из свеклы отварной (с маслом) | G49: 60 | I49: 22 | J49: 1.33 | K49: 1.36 | L49: 1.14
D51: итого | G51: =SUM(G44:G50) -> 540 | H51: 66.76 | I51: =SUM(I44:I50) -> 538 | J51: 20.077 | K51: 15.976 | L51: 78.919
A52: =A44 -> 1 | B52: =B44 -> 3 | C52: Обед | D52: закуска
D53: 1 блюдо
D54: 2 блюдо
D55: гарнир
D56: напиток
D57: хлеб бел.
D58: хлеб черн.
D61: итого | G61: =SUM(G52:G60) -> 0 | H61: =SUM(H52:H60) -> 0 | I61: 0 | J61: 0 | K61: 0 | L61: 0
A62: =A44 -> 1 | B62: =B44 -> 3 | C62: Итого за день: | G62: =G51+G61 -> 540 | H62: =H51+H61 -> 66.76 | I62: 538 | J62: 20.077 | K62: 15.976 | L62: 78.919
A63: 1 | B63: 4 | C63: Завтрак | D63: гор.блюдо | E63: ТТК № 2737 от 07.12.2023г | F63: Плов с говядиной | G63: 200 | I63: 430 | J63: 15.44 | K63: 19.29 | L63: 51.2
D64: гор.блюдо
D65: гор.напиток | E65: ТТК от 2021г | F65: Чай с сахаром | G65: 208 | I65: 32 | J65: 0.021 | K65: 0.005 | L65: 7.989
D66: хлеб | F66: Хлеб ржано-пшеничный/ Хлеб пшеничный | G66: 40 | I66: 91 | J66: 2.52 | K66: 0.36 | L66: 18.84
D67: фрукты
E68: ТТК | F68: Салат из моркови | G68: 60 | I68: 14 | J68: 2.06 | K68: 0.12 | L68: 2.28
D70: итого | G70: =SUM(G63:G68) -> 508 | H70: 66.76 | I70: =SUM(I63:I69) -> 567 | J70: 20.041 | K70: 19.775 | L70: =SUM(L63:L68) -> 80.309
A71: =A63 -> 1 | B71: =B63 -> 4 | C71: Обед | D71: закуска
D72: 1 блюдо
D73: 2 блюдо
D74: гарнир
D75: напиток
D76: хлеб бел.
D77: хлеб черн.
D80: итого | G80: =SUM(G71:G79) -> 0 | H80: =SUM(H71:H79) -> 0 | I80: 0 | J80: 0 | K80: 0 | L80: 0
A81: =A63 -> 1 | B81: =B63 -> 4 | C81: Итого за день: | G81: =G70+G80 -> 508 | H81: =H70+H80 -> 66.76 | I81: 567 | J81: 20.041 | K81: 19.775 | L81: 80.309
A82: 1 | B82: 5 | C82: Завтрак | D82: гор.блюдо | E82: ТТК №1515 от 28.07. 2021г | F82: Биточки рыбные из минтая | G82: 90 | I82: 238 | J82: 12.06 | K82: 15.31 | L82: 15.92
D83: гор.блюдо | E83: №312/2015г, Дели | F83: Пюре картофельное | G83: 150 | I83: 144 | J83: 3.437 | K83: 4.556 | L83: 21.451
D84: гор.напиток | E84: ТТК № 2693 от 14.09.2023 г | F84: Напиток из урюка | G84: 200 | I84: 32 | J84: 0.02 | K84: 0 | L84: 7.99
D85: хлеб | F85: Хлеб ржано-пшеничный/ Хлеб пшеничный | G85: 40 | I85: 91 | J85: 2.52 | K85: 0.36 | L85: 18.84
D86: фрукты
E87: №47/2015 Дели | F87: Салат из квашеной капусты | G87: 60 | I87: 7 | J87: 0.42 | K87: 0.06 | L87: 1.14
D89: итого | G89: =SUM(G82:G88) -> 540 | H89: 66.76 | I89: =SUM(I82:I88) -> 512 | J89: 18.457 | K89: 20.286 | L89: 65.341
A90: =A82 -> 1 | B90: =B82 -> 5 | C90: Обед | D90: закуска
D91: 1 блюдо
D92: 2 блюдо
D93: гарнир
D94: напиток
D95: хлеб бел.
D96: хлеб черн.
D99: итого | G99: =SUM(G90:G98) -> 0 | H99: =SUM(H90:H98) -> 0 | I99: 0 | J99: 0 | K99: 0 | L99: 0
A100: =A82 -> 1 | B100: =B82 -> 5 | C100: Итого за день: | G100: =G89+G99 -> 540 | H100: 66.76 | I100: 512 | J100: 18.457 | K100: 20.286 | L100: 65.341
A101: 1 | B101: 6 | C101: Завтрак | D101: гор.блюдо | E101: ТТК 2015г | F101: Пельмени "Для умников и умниц" отварные с маслом | G101: 155 | I101: 344 | J101: 17.047 | K101: 14.236 | L101: 36.838
D103: гор.напиток | E103: ТТК от 2021г | F103: Чай с сахаром | G103: 208 | I103: 32 | J103: 0.021 | K103: 0.005 | L103: 7.989
D104: хлеб | F104: Хлеб ржано-пшеничный/ Хлеб пшеничный | G104: 40 | I104: 91 | J104: 2.52 | K104: 0.36 | L104: 18.84
D105: фрукты | E105: №338 | F105: Плоды и ягоды свежие (яблоки) | G105: 120 | I105: 56 | J105: 0.48 | K105: 0.48 | L105: 11.76
D108: итого | G108: =SUM(G101:G107) -> 523 | H108: 66.76 | I108: =SUM(I101:I105) -> 523 | J108: 20.068 | K108: 15.081 | L108: 75.427
A109: =A101 -> 1 | B109: 6 | C109: Обед | D109: закуска
D110: 1 блюдо
D111: 2 блюдо
D112: гарнир
D113: напиток
D114: хлеб бел.
D115: хлеб черн.
D118: итого | G118: =SUM(G109:G117) -> 0 | H118: =SUM(H109:H117) -> 0 | I118: 0 | J118: 0 | K118: 0 | L118: 0
A119: =A101 -> 1 | B119: =B101 -> 6 | C119: Итого за день: | G119: =G108+G118 -> 523 | H119: 66.76 | I119: 523 | J119: 20.068 | K119: 15.081 | L119: 75.427
A120: 2 | B120: 1 | C120: Завтрак | D120: гор.блюдо | E120: ТТК от 01.11.2022 | F120: Котлеты Аппетитные мясо-куриные | G120: 90 | I120: 198 | J120: 10.01 | K120: 12.7 | L120: 10.98
D121: гор.блюдо | E121: ТТК 2014г | F121: Каша гречневая вязкая | G121: 150 | I121: 143 | J121: 3.462 | K121: 4.634 | L121: 21.786
D122: гор.напиток | E122: ТТК от 2021г | F122: Чай с сахаром | G122: 208 | I122: 32 | J122: 0.021 | K122: 0.005 | L122: 7.989
D123: хлеб | F123: Хлеб ржано-пшеничный/ Хлеб пшеничный | G123: 40 | I123: 91 | J123: 2.52 | K123: 0.36 | L123: 18.84
D124: фрукты | E124: № 338 | F124: Плоды и ягоды свежие (яблоки) | G124: 120 | I124: 56 | J124: 0.48 | K124: 0.48 | L124: 11.76
D127: итого | G127: =SUM(G120:G126) -> 608 | H127: 66.76 | I127: 520 | J127: =SUM(J120:J126) -> 16.493 | K127: 18.179 | L127: 71.355
A128: =A120 -> 2 | B128: =B120 -> 1 | C128: Обед | D128: закуска
D129: 1 блюдо
D130: 2 блюдо
D131: гарнир
D132: напиток
D133: хлеб бел.
D134: хлеб черн.
D137: итого | G137: =SUM(G128:G136) -> 0 | H137: =SUM(H128:H136) -> 0 | I137: 0 | J137: 0 | K137: 0 | L137: 0
A138: =A120 -> 2 | B138: =B120 -> 1 | C138: Итого за день: | G138: =G127+G137 -> 608 | H138: =H127+H137 -> 66.76 | I138: 520 | J138: 16.493 | K138: 18.179 | L138: 71.355
A139: 2 | B139: 2 | C139: Завтрак | D139: гор.блюдо | E139: ТТК № 2738 от 07.12.2023 | F139: Жаркое по - домашнему | G139: 200 | I139: 370 | J139: 12.05 | K139: 17.93 | L139: 39.88
D141: гор.напиток | E141: ТТК от 2021г | F141: Чай с сахаром | G141: 208 | I141: 32 | J141: 0.021 | K141: 0.005 | L141: 7.989
D142: хлеб | F142: Хлеб ржано-пшеничный/ Хлеб пшеничный | G142: 40 | I142: 91 | J142: 2.52 | K142: 0.36 | L142: 18.84
D143: фрукты
E144: ТТК | F144: Салат из моркови | G144: 60 | I144: 14 | J144: 2.06 | K144: 0.12 | L144: 2.28
D146: итого | G146: =SUM(G139:G145) -> 508 | H146: 66.76 | I146: =SUM(I139:I145) -> 507 | J146: 16.651 | K146: 18.415 | L146: 68.989
A147: =A139 -> 2 | B147: =B139 -> 2 | C147: Обед | D147: закуска
D148: 1 блюдо
D149: 2 блюдо
D150: гарнир
D151: напиток
D152: хлеб бел.
D153: хлеб черн.
D156: итого | G156: =SUM(G147:G155) -> 0 | H156: =SUM(H147:H155) -> 0 | I156: 0 | J156: 0 | K156: 0 | L156: 0
A157: =A139 -> 2 | B157: =B139 -> 2 | C157: Итого за день: | G157: =G146+G156 -> 508 | H157: =H146+H156 -> 66.76 | I157: 507 | J157: 16.651 | K157: 18.415 | L157: 68.989
A158: 2 | B158: 3 | C158: Завтрак | D158: гор.блюдо | E158: ТТК №2213 от 02.12.2022 | F158: Бифштекс рубленый по-домашнему | G158: 90 | I158: 184 | J158: 10.69 | K158: 12.037 | L158: 8.367
D159: гор.блюдо | E159: № 202/2015 Дели | F159: Макаронные изделия отварные | G159: 150 | I159: 200 | J159: 5.044 | K159: 4.068 | L159: 35.906
D160: гор.напиток | E160: ТТК от 2021г | F160: Чай с сахаром | G160: 208 | I160: 32 | J160: 0.021 | K160: 0.005 | L160: 7.989
D161: хлеб | F161: Хлеб ржано-пшеничный/ Хлеб пшеничный | G161: 40 | I161: 91 | J161: 2.52 | K161: 0.36 | L161: 18.84
D162: фрукты
E163: №52/2015 Дели | F163: Салат из свеклы отварной (с маслом) | G163: 60 | I163: 22 | J163: 1.33 | K163: 1.36 | L163: 1.14
D165: итого | G165: =SUM(G158:G164) -> 548 | H165: 66.76 | I165: =SUM(I158:I164) -> 529 | J165: 19.605 | K165: 17.83 | L165: 72.242
A166: =A158 -> 2 | B166: =B158 -> 3 | C166: Обед | D166: закуска
D167: 1 блюдо
D168: 2 блюдо
D169: гарнир
D170: напиток
D171: хлеб бел.
D172: хлеб черн.
D175: итого | G175: =G164+G174 -> 0 | H175: =H164+H174 -> 0 | I175: 0 | J175: 0 | K175: 0 | L175: 0
A176: =A158 -> 2 | B176: =B158 -> 3 | C176: Итого за день: | G176: =G165+G175 -> 548 | H176: 66.76 | I176: 529 | J176: 19.605 | K176: 17.83 | L176: 72.242
A177: 2 | B177: 4 | C177: Завтрак | D177: гор.блюдо | E177: ТТК 2021г Июль | F177: Плов с куриными грудками | G177: 200 | I177: 419 | J177: 15.448 | K177: 19.298 | L177: 45.883
D179: гор.напиток | E179: ТТК №2693 от 14.09.2023г | F179: Напиток из урюка | G179: 200 | I179: 32 | J179: 0.02 | K179: 0 | L179: 7.99
D180: хлеб | F180: Хлеб ржано-пшеничный/ Хлеб пшеничный | G180: 40 | I180: 91 | J180: 2.52 | K180: 0.36 | L180: 18.84
D181: фрукты
E182: № 47/2015г Дели | F182: Салат из квашеной капусты | G182: 60 | I182: 7 | J182: 0.42 | K182: 0.06 | L182: 1.14
D184: итого | G184: =SUM(G177:G182) -> 500 | H184: 66.76 | I184: =I177+I178+I179+I180+I181+I182 -> 549 | J184: 19.188 | K184: 19.718 | L184: 84.323
A185: =A177 -> 2 | B185: =B177 -> 4 | C185: Обед | D185: закуска
D186: 1 блюдо
D187: 2 блюдо
D188: гарнир
D189: напиток
D190: хлеб бел.
D191: хлеб черн.
D194: итого | G194: =SUM(G185:G193) -> 0 | H194: =SUM(H185:H193) -> 0 | I194: 0 | J194: 0 | K194: 0 | L194: 0
A195: =A177 -> 2 | B195: =B177 -> 4 | C195: Итого за день: | H195: =H184+H194 -> 66.76
A196: 2 | B196: 5 | C196: Завтрак | D196: гор.блюдо | E196: ТТК от 2024 | F196: Ежики рыбные с рисом в томатном соусе | G196: 90 | I196: 199 | J196: 10.25 | K196: 8.16 | L196: 21.21
D197: гор.блюдо | E197: №312/2015г, Дели | F197: Пюре картофельное | G197: 150 | I197: 144 | J197: 3.437 | K197: 4.556 | L197: 21.451
D198: гор.напиток | E198: ТТК от 2021г | F198: Компот из свежизх плодов (яблоки) | G198: 200 | I198: 49 | J198: 0.08 | K198: 0.08 | L198: 11.94
D199: хлеб | F199: Хлеб ржано-пшеничный/ Хлеб пшеничный | G199: 40 | I199: 91 | J199: 2.52 | K199: 0.36 | L199: 18.84
D200: фрукты
E201: №45/2015г, Дели | F201: Салат из белокачанной капусты | G201: 60 | I201: 54 | J201: 0.931 | K201: 3.051 | L201: 5.645
D203: итого | G203: =SUM(G196:G201) -> 540 | H203: 66.76 | I203: =SUM(I196:I202) -> 537 | J203: 17.218 | K203: 16.207 | L203: =SUM(L196:L201) -> 79.086
A204: =A196 -> 2 | B204: =B196 -> 5 | C204: Обед | D204: закуска
D205: 1 блюдо
D206: 2 блюдо
D207: гарнир
D208: напиток
D209: хлеб бел.
D210: хлеб черн.
D213: итого | G213: =SUM(G204:G212) -> 0 | H213: =SUM(H204:H212) -> 0 | I213: 0 | J213: 0 | K213: 0 | L213: 0
A214: =A196 -> 2 | B214: =B196 -> 5 | C214: Итого за день: | G214: =G203+G213 -> 540 | H214: =H203+H213 -> 66.76 | I214: 537 | J214: 17.218 | K214: 16.207 | L214: 79.086
A215: 2 | B215: 6 | C215: Завтрак | E215: №243/2015г, Дели | F215: Сосиски отварные | G215: 100 | I215: 222 | J215: 11.4 | K215: 15.71 | L215: 8.8
D216: гор.блюдо | E216: № 202/2015г Дели | F216: Макаронные изделия отварные | G216: 150 | I216: 200 | J216: 5.044 | K216: 4.068 | L216: 35.906
D217: гор.напиток | E217: ТТК от 2021г | F217: Чай с сахаром | G217: 208 | I217: 32 | J217: 0.021 | K217: 0.005 | L217: 7.989
D218: хлеб | F218: Хлеб ржано-пшеничный/ Хлеб пшеничный | G218: 40 | I218: 91 | J218: 2.52 | K218: 0.36 | L218: 18.84
D219: фрукты | E219: № 338 | F219: Плоды и свежие ягоды (яблоки) | G219: 120 | I219: 56 | J219: 0.48 | K219: 0.48 | L219: 11.76
D222: итого | G222: =SUM(G215:G221) -> 618 | H222: 66.76 | I222: 602 | J222: =SUM(J215:J221) -> 19.465 | K222: =SUM(K215:K219) -> 20.623 | L222: =SUM(L215:L221) -> 83.295
A223: =A215 -> 2 | B223: 6 | C223: Обед | D223: закуска
D224: 1 блюдо
D225: 2 блюдо
D226: гарнир
D227: напиток
D228: хлеб бел.
D229: хлеб черн.
D232: итого | G232: =SUM(G223:G231) -> 0 | H232: =SUM(H223:H231) -> 0 | I232: 0 | J232: 0 | K232: 0 | L232: 0
A233: =A215 -> 2 | B233: =B215 -> 6 | C233: Итого за день: | G233: =G222+G232 -> 618 | H233: =H222+H232 -> 66.76 | I233: 602 | J233: 19.465 | K233: 20.623 | L233: 83.295
